fUSD/lending_fUSD_20251220
["ID","MTS","AMOUNT","RATE_DAILY","PERIOD"]
[399256830,1766211044612,-500.0,0.00013698,2]
[399256831,1766211044621,-500.0,0.00013698,2]
[399256832,1766211044630,-500.0,0.00013698,2]
[399256833,1766211044644,-2147.18,0.00013698,2]
[399256834,1766211044653,-545.71710874,0.00013698,2]
[399256835,1766211044662,-500.0,0.00013698,2]
[399256836,1766211044672,-500.0,0.00013698,2]
[399256837,1766211044683,-151.87,0.00013698,2]
[399256838,1766211044694,-150.94,0.00013698,2]
[399256839,1766211044703,-150.87,0.00013698,2]
[399256840,1766211044715,-151.68,0.00013698,2]
[399256841,1766211044725,-150.0,0.00013698,2]
[399256842,1766211044735,-500.0,0.00013699,2]
[399256843,1766211044744,-500.0,0.00013699,2]
[399256844,1766211044752,-500.0,0.00013699,2]
[399256845,1766211044761,-500.0,0.00013699,2]
[399256846,1766211044772,-500.0,0.00013699,2]
[399256847,1766211044782,-357.49060572,0.00013699,2]
[399256848,1766211044791,-500.0,0.00013699,2]
[399256849,1766211044802,-500.0,0.00013699,2]
[399256850,1766211044812,-500.0,0.00013699,2]
[399256851,1766211044821,-500.0,0.00013699,2]
[399256852,1766211044830,-500.0,0.00013699,2]
[399256853,1766211044839,-500.0,0.00013699,2]
[399256854,1766211044848,-500.0,0.00013699,2]
[399256855,1766211044857,-500.0,0.00013699,2]
[399256856,1766211044867,-500.0,0.00013699,2]
[399256857,1766211044875,-500.0,0.00013699,2]
[399256858,1766211044884,-500.0,0.00013699,2]
[399256859,1766211044894,-500.0,0.00013699,2]
[399256860,1766211044902,-500.0,0.00013699,2]
[399256861,1766211044911,-500.0,0.00013699,2]
[399256862,1766211044920,-500.0,0.00013699,2]
[399256863,1766211044929,-500.0,0.00013699,2]
[399256864,1766211044938,-500.0,0.00013699,2]
[399256865,1766211044949,-499.72722483,0.00013699,2]
[399256866,1766211044959,-500.0,0.00013699,2]
[399256867,1766211044970,-500.0,0.00013699,2]
[399256868,1766211044979,-500.0,0.00013699,2]
[399256869,1766211044988,-500.0,0.00013699,2]
[399256870,1766211044999,-498.0,0.00013734,2]
[399256871,1766211045008,-1054.0,0.00013734,2]
[399256872,1766211045017,-729.0,0.00013734,2]
[399256873,1766211045026,-494.0,0.00013734,2]
[399256874,1766211045035,-163.10613259,0.00013773,2]
[399256875,1766211045045,-500.0,0.00013773,2]
[399256876,1766211045054,-176.6683039,0.00013773,2]
[399256877,1766211045063,-500.50034776,0.00013773,2]
[399256878,1766211045072,-165.53185787,0.00013773,2]
[399256879,1766211045081,-500.0,0.00013773,2]
[399256880,1766211045090,-500.63598857,0.00013773,2]
[399256881,1766211045099,-500.0,0.00013773,2]
[399256882,1766211045108,-500.0,0.00013773,2]
[399256883,1766211045117,-500.0,0.00013773,2]
[399256884,1766211045126,-174.74495914,0.00013773,2]
[399256885,1766211045136,-172.76817182,0.00013773,2]
[399256886,1766211045145,-500.0,0.00013773,2]
[399256887,1766211045154,-500.0,0.00013773,2]
[399256888,1766211045163,-500.0,0.00013773,2]
[399256889,1766211045172,-315.42381846,0.00013773,2]
[399256890,1766211045181,-500.0,0.00013773,2]
[399256891,1766211045190,-500.0,0.00013773,2]
[399256892,1766211045199,-500.0,0.00013773,2]
[399256893,1766211045208,-500.0,0.00013773,2]
[399256894,1766211045217,-500.0,0.00013773,2]
[399256895,1766211045227,-500.0,0.00013773,2]
[399256896,1766211045236,-500.0,0.00013773,2]
[399256897,1766211045244,-500.0,0.00013773,2]
[399256898,1766211045253,-500.0,0.00013773,2]
[399256899,1766211045262,-500.0,0.00013773,2]
[399256900,1766211045271,-500.0,0.00013773,2]
[399256901,1766211045280,-500.0,0.00013773,2]
[399256902,1766211045290,-165.31243658,0.00013773,2]
[399256903,1766211045299,-500.0,0.00013773,2]
[399256904,1766211045308,-500.0,0.00013773,2]
[399256905,1766211045318,-216.27337885,0.00013773,2]
[399256906,1766211045327,-500.0,0.00013773,2]
[399256907,1766211045336,-500.0,0.00013773,2]
[399256908,1766211045345,-168.59999571,0.00013773,2]
[399256909,1766211045355,-500.0,0.00013773,2]
[399256910,1766211045364,-500.0,0.00013773,2]
[399256911,1766211045374,-500.0,0.00013773,2]
[399256912,1766211045384,-562.57939524,0.00013773,2]
[399256913,1766211045393,-500.0,0.00013773,2]
[399256914,1766211045403,-201.65516925,0.00013773,2]
[399256915,1766211045412,-179.50290541,0.00013773,2]
[399256916,1766211045422,-500.0,0.00013773,2]
[399256917,1766211045434,-453.43519306,0.00013773,2]
[399256918,1766211045444,-165.7973653,0.00013773,2]
[399256919,1766211045453,-500.0,0.0001381,2]
[399256920,1766211045464,-498.0,0.00013871,2]
[399256921,1766211045473,-1054.0,0.00013871,2]
[399256922,1766211045482,-729.0,0.00013871,2]
[399256923,1766211045491,-494.0,0.00013871,2]
[399256924,1766211045500,-207.4,0.00013971,2]
[399256925,1766211045510,-2147.18,0.00013972,2]
[399256926,1766211045519,-200.0,0.00013972,2]
[399256927,1766211045528,-500.0,0.00013972,2]
[399256928,1766211045538,-200.0,0.00013972,2]
[399256929,1766211045547,-498.0,0.00014008,2]
[399256930,1766211045556,-1054.0,0.00014008,2]
[399256931,1766211045566,-729.0,0.00014008,2]
[399256932,1766211045575,-494.0,0.00014008,2]
[399256933,1766211045584,-515.04736606,0.00014078,2]
[399256934,1766211045593,-498.0,0.00014145,2]
[399256935,1766211045604,-1054.0,0.00014145,2]
[399256936,1766211045613,-729.0,0.00014145,2]
[399256937,1766211045622,-494.0,0.00014145,2]
[399256938,1766211045632,-2147.18,0.00014246,2]
[399256939,1766211045643,-498.0,0.00014282,2]
[399256940,1766211045653,-1054.0,0.00014282,2]
[399256941,1766211045662,-729.0,0.00014282,2]
[399256942,1766211045671,-494.0,0.00014282,2]
[399256943,1766211045682,-500.0,0.0001432,2]
[399256944,1766211045691,-500.0,0.0001432,2]
[399256945,1766211045700,-1000.0,0.00014321,2]
[399256946,1766211045710,-1000.78461254,0.00014321,2]
[399256947,1766211045720,-572.75082077,0.00014321,2]
[399256948,1766211045730,-1000.0,0.00014321,2]
[399256949,1766211045739,-1135.18911943,0.00014321,2]
[399256950,1766211045748,-535.09556247,0.00014321,2]
[399256951,1766211045757,-1000.0,0.00014321,2]
[399256952,1766211045766,-627.27365114,0.00014321,2]
[399256953,1766211045775,-594.53896978,0.00014321,2]
[399256954,1766211045835,-1000.0,0.00014321,2]
[399256955,1766211045844,-1000.0,0.00014321,2]
[399256956,1766211045853,-1000.0,0.00014321,2]
[399256957,1766211045862,-1000.0,0.00014321,2]
[399256958,1766211045870,-208.16009032,0.00014321,2]
[399256959,1766211045880,-1001.90897722,0.00014321,2]
[399256960,1766211045888,-1000.84503146,0.00014321,2]
[399256961,1766211045897,-500.48342927,0.00014321,2]
[399256962,1766211045906,-1000.0,0.00014321,2]
[399256963,1766211045915,-1000.0,0.00014321,2]
[399256964,1766211045923,-1000.0,0.00014321,2]
[399256965,1766211045933,-1000.0,0.00014321,2]
[399256966,1766211045942,-1000.0,0.00014321,2]
[399256967,1766211045951,-500.31513524,0.00014321,2]
[399256968,1766211045960,-502.74001595,0.00014321,2]
[399256969,1766211045969,-1000.0,0.00014321,2]
[399256970,1766211045978,-1000.0,0.00014321,2]
[399256971,1766211045987,-1002.93994495,0.00014321,2]
[399256972,1766211045996,-483.93215772,0.00014321,2]
[399256973,1766211046005,-1000.0,0.00014321,2]
[399256974,1766211046014,-27573.70083245,0.00014336,2]
[399256975,1766211046022,-1569.88037876,0.00014345,2]
[399256976,1766211046031,-312.0,0.00014388,2]
[399256977,1766211046040,-508.76159208,0.00014419,2]
[399256978,1766211046050,-1057.03109611,0.00014419,2]
[399256979,1766211046059,-743.07268644,0.00014419,2]
[399256980,1766211046068,-500.55341749,0.00014419,2]
[399256981,1766211046079,-2147.18,0.0001452,2]
[399256982,1766211046090,-200.0,0.0001452,2]
[399256983,1766211046099,-500.0,0.0001452,2]
[399256984,1766211046109,-200.0,0.0001452,2]
[399256985,1766211046120,-250.0,0.00014533,2]
[399256986,1766211046130,-500.0,0.00014555,2]
[399256987,1766211046141,-208.25,0.00014617,2]
[399256988,1766211046151,-500.0,0.00014683,2]
[399256989,1766211046160,-2147.18,0.00014794,2]
[399256990,1766211046169,-1500.0,0.00014868,2]
[399256991,1766211046177,-1500.0,0.00014868,2]
[399256992,1766211046186,-1501.18432329,0.00014868,2]
[399256993,1766211046195,-1500.0,0.00014868,2]
[399256994,1766211046204,-1502.00400434,0.00014868,2]
[399256995,1766211046213,-365.94030489,0.00014868,2]
[399256996,1766211046222,-1501.51415398,0.00014868,2]
[399256997,1766211046231,-1500.0,0.00014868,2]
[399256998,1766211046240,-1001.91769362,0.00014868,2]
[399256999,1766211046249,-1500.0,0.00014868,2]
[399257000,1766211046258,-1500.0,0.00014868,2]
[399257001,1766211046267,-711.67995912,0.00014868,2]
[399257002,1766211046276,-502.20443143,0.00014868,2]
[399257003,1766211046286,-1001.58945381,0.00014868,2]
[399257004,1766211046295,-1503.97714891,0.00014868,2]
[399257005,1766211046304,-39189.46781213,0.00014946,2]
[399257006,1766211046313,-27573.70083245,0.00014977,2]
[399257007,1766211046324,-294.2331637,0.00015065,2]
[399257008,1766211046334,-151.90726099,0.00015068,2]
[399257009,1766211046343,-2147.18,0.00015068,2]
[399257010,1766211046352,-200.0,0.00015068,2]
[399257011,1766211046362,-500.0,0.00015068,2]
[399257012,1766211046371,-200.0,0.00015068,2]
[399257013,1766211046380,-633.74985917,0.00015202,2]
[399257014,1766211046390,-158.48329942,0.00015288,2]
[399257015,1766211046399,-151.72084113,0.00015288,2]
[399257016,1766211046408,-150.0,0.00015288,2]
[399257017,1766211046417,-157.75435091,0.00015288,2]
[399257018,1766211046426,-156.76422926,0.00015288,2]
[399257019,1766211046435,-150.82546103,0.00015288,2]
[399257020,1766211046445,-151.68546767,0.00015288,2]
[399257021,1766211046454,-152.94375339,0.00015288,2]
[399257022,1766211046463,-152.11986511,0.00015288,2]
[399257023,1766211046472,-155.96693599,0.00015288,2]
[399257024,1766211046482,-152.70737667,0.00015288,2]
[399257025,1766211046491,-2147.18,0.00015342,2]
[399257026,1766211046500,-2000.0,0.00015416,2]
[399257027,1766211046509,-1188.04388907,0.00015416,2]
[399257028,1766211046518,-893.70965969,0.00015416,2]
[399257029,1766211046527,-2002.17420355,0.00015416,2]
[399257030,1766211046536,-2000.0,0.00015416,2]
[399257031,1766211046545,-1503.12423045,0.00015416,2]
[399257032,1766211046553,-287.87,0.00015501,2]
[399257033,1766211046562,-13722.89,0.00015522,2]
[399257034,1766211046571,-39189.46781213,0.00015597,2]
[399257035,1766211046580,-2147.18,0.00015616,2]
[399257036,1766211046589,-200.0,0.00015616,2]
[399257037,1766211046598,-500.0,0.00015616,2]
[399257038,1766211046607,-200.0,0.00015616,2]
[399257039,1766211046616,-27573.70083245,0.00015618,2]
[399257040,1766211046624,-150.0,0.00015627,2]
[399257041,1766211046635,-2147.18,0.0001589,2]
[399257042,1766211046645,-2251.8591214,0.000159,2]
[399257043,1766211046654,-160.46667428,0.00015908,2]
[399257044,1766211046664,-2500.0,0.00015964,2]
[399257045,1766211046674,-2500.0,0.00015964,2]
[399257046,1766211046685,-150.0,0.00015967,2]
[399257047,1766211046695,-200.0,0.00016029,2]
[399257048,1766211046705,-160.47,0.00016067,2]
[399257049,1766211046715,-160.47,0.00016078,2]
[399257050,1766211046724,-160.47,0.00016082,2]
[399257051,1766211046737,-160.47,0.00016112,2]
[399257052,1766211046747,-159.9,0.00016129,2]
[399257053,1766211046756,-256.98,0.00016155,2]
[399257054,1766211046766,-2147.18,0.00016164,2]
[399257055,1766211046775,-200.0,0.00016164,2]
[399257056,1766211046784,-500.0,0.00016164,2]
[399257057,1766211046796,-200.0,0.00016164,2]
[399257058,1766211046810,-39189.46781213,0.00016249,2]
[399257059,1766211046821,-500.0,0.00016259,2]
[399257060,1766211046833,-27573.70083245,0.00016259,2]
[399257061,1766211046843,-500.0,0.000163,2]
[399257062,1766211046852,-500.0,0.000163,2]
[399257063,1766211046861,-500.0,0.000163,2]
[399257064,1766211046870,-500.0,0.000163,2]
[399257065,1766211046879,-162.03877535,0.000163,2]
[399257066,1766211046888,-570.20028222,0.000163,2]
[399257067,1766211046898,-500.30081252,0.000163,2]
[399257068,1766211046908,-168.09419939,0.000163,2]
[399257069,1766211046917,-500.0,0.000163,2]
[399257070,1766211046926,-500.0,0.000163,2]
[399257071,1766211046935,-500.37407939,0.000163,2]
[399257072,1766211046944,-500.48687625,0.000163,2]
[399257073,1766211046954,-500.0,0.000163,2]
[399257074,1766211046962,-500.0,0.000163,2]
[399257075,1766211046972,-500.29716194,0.000163,2]
[399257076,1766211046981,-500.5692733,0.000163,2]
[399257077,1766211046990,-500.4308882,0.000163,2]
[399257078,1766211046999,-500.0,0.000163,2]
[399257079,1766211047008,-500.19600128,0.000163,2]
[399257080,1766211047018,-500.5161197,0.000163,2]
[399257081,1766211047027,-162.35722153,0.000163,2]
[399257082,1766211047036,-500.0,0.000163,2]
[399257083,1766211047045,-500.0,0.000163,2]
[399257084,1766211047054,-500.0,0.000163,2]
[399257085,1766211047064,-500.33069287,0.000163,2]
[399257086,1766211047073,-500.0,0.000163,2]
[399257087,1766211047082,-500.0,0.000163,2]
[399257088,1766211047092,-555.87900727,0.000163,2]
[399257089,1766211047101,-518.77690272,0.000163,2]
[399257090,1766211047113,-330.6916765,0.000163,2]
[399257091,1766211047122,-500.0,0.000163,2]
[399257092,1766211047132,-500.44010865,0.000163,2]
[399257093,1766211047144,-177.2862913,0.000163,2]
[399257094,1766211047153,-334.5464899,0.000163,2]
[399257095,1766211047162,-500.0,0.000163,2]
[399257096,1766211047171,-500.0,0.000163,2]
[399257097,1766211047180,-500.0,0.000163,2]
[399257098,1766211047189,-468.55909228,0.000163,2]
[399257099,1766211047205,-577.20648211,0.000163,2]
[399257100,1766211047222,-220.27121476,0.000163,2]
[399257101,1766211047234,-523.00588269,0.000163,2]
[399257103,1766211047244,-168.56959317,0.000163,2]
[399257105,1766211047253,-500.30832876,0.000163,2]
[399257107,1766211047265,-500.0,0.000163,2]
[399257108,1766211047276,-500.0,0.000163,2]
[399257109,1766211047285,-162.24077786,0.000163,2]
[399257110,1766211047295,-452.09330567,0.000163,2]
[399257111,1766211047304,-333.44713486,0.000163,2]
[399257112,1766211047314,-500.0,0.000163,2]
[399257113,1766211047324,-500.59670517,0.000163,2]
[399257114,1766211047333,-500.0,0.000163,2]
[399257115,1766211047344,-500.0,0.000163,2]
[399257116,1766211047354,-500.0,0.000163,2]
[399257117,1766211047363,-590.13268338,0.000163,2]
[399257118,1766211047373,-500.21661931,0.000163,2]
[399257119,1766211047382,-500.0,0.000163,2]
[399257120,1766211047391,-344.64845159,0.000163,2]
[399257121,1766211047402,-161.07996631,0.000163,2]
[399257122,1766211047412,-500.0,0.000163,2]
[399257123,1766211047421,-543.08632529,0.000163,2]
[399257124,1766211047430,-500.0,0.000163,2]
[399257125,1766211047440,-500.0,0.000163,2]
[399257126,1766211047449,-500.0,0.000163,2]
[399257127,1766211047459,-159.43095819,0.000163,2]
[399257128,1766211047470,-516.37835686,0.000163,2]
[399257129,1766211047479,-500.0,0.000163,2]
[399257130,1766211047488,-500.0,0.000163,2]
[399257131,1766211047498,-500.0,0.000163,2]
[399257132,1766211047507,-500.0,0.000163,2]
[399257133,1766211047516,-500.0,0.000163,2]
[399257134,1766211047526,-500.0,0.000163,2]
[399257135,1766211047536,-500.0,0.000163,2]
[399257136,1766211047545,-500.0,0.000163,2]
[399257137,1766211047555,-500.0,0.000163,2]
[399257138,1766211047565,-500.0,0.000163,2]
[399257139,1766211047575,-166.91561833,0.000163,2]
[399257140,1766211047583,-529.96646376,0.000163,2]
[399257141,1766211047592,-500.0,0.000163,2]
[399257142,1766211047601,-150.0,0.00016307,2]
[399257143,1766211047610,-228.0,0.000164,2]
[399257144,1766211047620,-319.0,0.000164,2]
[399257145,1766211047632,-182.0,0.000164,2]
[399257146,1766211047644,-183.63284637,0.000164,2]
[399257147,1766211047653,-2147.35,0.00016438,2]
[399257148,1766211047663,-500.0,0.00016438,2]
[399257149,1766211047674,-500.0,0.00016438,2]
[399257150,1766211047684,-500.0,0.00016438,2]
[399257151,1766211047695,-500.0,0.00016438,2]
[399257152,1766211047705,-500.0,0.00016438,2]
[399257153,1766211047717,-500.0,0.00016438,2]
[399257154,1766211047726,-500.0,0.00016438,2]
[399257155,1766211047735,-500.0,0.00016438,2]
[399257156,1766211047743,-500.0,0.00016438,2]
[399257157,1766211047752,-500.0,0.00016438,2]
[399257158,1766211047761,-500.0,0.00016438,2]
[399257159,1766211047770,-500.0,0.00016438,2]
[399257160,1766211047779,-500.0,0.00016438,2]
[399257161,1766211047788,-500.0,0.00016438,2]
[399257162,1766211047801,-500.0,0.00016438,2]
[399257163,1766211047810,-500.0,0.00016438,2]
[399257164,1766211047819,-500.0,0.00016438,2]
[399257165,1766211047828,-500.0,0.00016438,2]
[399257166,1766211047836,-500.0,0.00016438,2]
[399257167,1766211047846,-500.0,0.00016438,2]
[399257168,1766211047855,-500.0,0.00016438,2]
[399257169,1766211047864,-500.0,0.00016438,2]
[399257170,1766211047873,-629.71100748,0.00016438,2]
[399257171,1766211047881,-500.0,0.00016438,2]
[399257172,1766211047895,-500.0,0.00016438,2]
[399257173,1766211047904,-500.0,0.00016438,2]
[399257174,1766211047913,-500.0,0.00016438,2]
[399257175,1766211047922,-500.0,0.00016438,2]
[399257176,1766211047931,-500.0,0.00016438,2]
[399257177,1766211047940,-500.0,0.00016438,2]
[399257178,1766211047949,-500.0,0.00016438,2]
[399257179,1766211047959,-500.0,0.00016438,2]
[399257180,1766211047968,-500.0,0.00016438,2]
[399257181,1766211047977,-500.0,0.00016438,2]
[399257182,1766211047987,-500.0,0.00016438,2]
[399257183,1766211047996,-500.0,0.00016438,2]
[399257184,1766211048006,-500.0,0.00016438,2]
[399257185,1766211048015,-500.0,0.00016438,2]
[399257186,1766211048024,-500.0,0.00016438,2]
[399257187,1766211048033,-500.0,0.00016438,2]
[399257188,1766211048042,-500.0,0.00016438,2]
[399257189,1766211048052,-500.0,0.00016438,2]
[399257190,1766211048061,-500.0,0.00016438,2]
[399257191,1766211048070,-500.0,0.00016438,2]
[399257192,1766211048080,-500.0,0.00016438,2]
[399257193,1766211048089,-500.0,0.00016438,2]
[399257194,1766211048098,-500.0,0.00016438,2]
[399257195,1766211048107,-500.0,0.00016438,2]
[399257196,1766211048116,-500.0,0.00016438,2]
[399257197,1766211048125,-500.0,0.00016438,2]
[399257198,1766211048134,-500.0,0.00016438,2]
[399257199,1766211048143,-500.0,0.00016438,2]
[399257200,1766211048151,-500.0,0.00016438,2]
[399257201,1766211048160,-16907.97,0.00016438,2]
[399257202,1766211048169,-3000.71,0.00016438,2]
[399257203,1766211048179,-800.62641417,0.00016438,2]
[399257204,1766211048188,-164.42,0.0001644,2]
[399257205,1766211048197,-164.42,0.0001644,2]
[399257206,1766211048206,-164.42,0.0001644,2]
[399257207,1766211048215,-164.42,0.0001644,2]
[399257208,1766211048224,-164.42,0.0001644,2]
[399257209,1766211048234,-164.42,0.0001644,2]
[399257210,1766211048243,-164.42,0.0001644,2]
[399257211,1766211048252,-164.42,0.0001644,2]
[399257212,1766211048261,-3109.34995974,0.00016512,2]
[399257213,1766211048270,-3000.0,0.00016512,2]
[399257214,1766211048280,-150.0,0.00016647,2]
[399257215,1766211048289,-215.0738,0.0001671,2]
[399257216,1766211048298,-200.0,0.00016712,2]
[399257217,1766211048307,-500.0,0.00016712,2]
[399257218,1766211048316,-200.0,0.00016712,2]
[399257219,1766211048325,-500.0,0.00016822,2]
[399257220,1766211048335,-846.45332019,0.0001683,2]
[399257221,1766211048344,-500.0,0.00016847,2]
[399257222,1766211048353,-1000.0,0.00016848,2]
[399257223,1766211048363,-1001.13256122,0.00016848,2]
[399257224,1766211048372,-1000.87754816,0.00016848,2]
[399257225,1766211048381,-1000.91698308,0.00016848,2]
[399257226,1766211048390,-1001.31913615,0.00016848,2]
[399257227,1766211048400,-500.65137842,0.00016848,2]
[399257228,1766211048409,-1001.02020729,0.00016848,2]
[399257229,1766211048419,-1002.26047729,0.00016848,2]
[399257230,1766211048428,-1000.76703223,0.00016848,2]
[399257231,1766211048438,-1001.19540644,0.00016848,2]
[399257232,1766211048449,-1001.0574546,0.00016848,2]
[399257233,1766211048459,-1000.0,0.00016848,2]
[399257234,1766211048468,-1001.04078122,0.00016848,2]
[399257235,1766211048477,-1000.87355102,0.00016848,2]
[399257236,1766211048486,-1001.39291005,0.00016848,2]
[399257237,1766211048495,-1000.0,0.00016848,2]
[399257238,1766211048504,-1000.0,0.00016848,2]
[399257239,1766211048514,-1000.0,0.00016848,2]
[399257240,1766211048525,-1001.04801864,0.00016848,2]
[399257241,1766211048534,-179.47316237,0.00016848,2]
[399257242,1766211048544,-221.90485079,0.00016848,2]
[399257243,1766211048553,-1001.01249642,0.00016848,2]
[399257244,1766211048564,-1001.0881382,0.00016848,2]
[399257245,1766211048574,-1001.94292641,0.00016848,2]
[399257246,1766211048584,-998.88830841,0.00016848,2]
[399257247,1766211048592,-1000.866265,0.00016848,2]
[399257248,1766211048601,-1000.0,0.00016848,2]
[399257249,1766211048612,-500.58632088,0.00016848,2]
[399257250,1766211048621,-501.11789279,0.00016848,2]
[399257251,1766211048631,-1000.9465121,0.00016848,2]
[399257252,1766211048644,-1000.0,0.00016848,2]
[399257253,1766211048653,-501.13881872,0.00016848,2]
[399257254,1766211048662,-1000.83354161,0.00016848,2]
[399257255,1766211048672,-1000.0,0.00016848,2]
[399257256,1766211048683,-1000.96314567,0.00016848,2]
[399257257,1766211048693,-1000.0,0.00016848,2]
[399257258,1766211048702,-1000.0,0.00016848,2]
[399257259,1766211048713,-1000.0,0.00016848,2]
[399257260,1766211048722,-1001.82577211,0.00016848,2]
[399257261,1766211048731,-200.0,0.00016864,2]
[399257262,1766211048740,-10070.4907,0.000169,2]
[399257263,1766211048749,-10000.0,0.000169,2]
[399257264,1766211048758,-39189.46781213,0.000169,2]
[399257265,1766211048767,-685.29047211,0.000169,2]
[399257266,1766211048776,-151.0,0.000169,2]
[399257267,1766211048785,-27573.70083245,0.000169,2]
[399257268,1766211048794,-515.04736606,0.000169,2]
[399257269,1766211048803,-340.00139221,0.000169,2]
[399257270,1766211048812,-181.47081458,0.000169,2]
[399257271,1766211048821,-151.71,0.000169,2]
[399257272,1766211048830,-152.53,0.000169,2]
[399257273,1766211048839,-151.09,0.000169,2]
[399257274,1766211048848,-150.45,0.000169,2]
[399257275,1766211048857,-469.51043734,0.00016941,2]
[399257276,1766211048865,-500.0,0.00016941,2]
[399257277,1766211048874,-57272.3294487,0.00016942,2]
[399257278,1766211048883,-2561.6577422,0.00016942,2]
[399257279,1766211048892,-91104.4634304,0.00016942,2]
[399257280,1766211048901,-150.10981544,0.00016973,2]
[399257281,1766211048909,-150.09235231,0.00016973,2]
[399257282,1766211048919,-163.39899626,0.00016973,2]
[399257283,1766211048928,-150.0,0.00016973,2]
[399257284,1766211048937,-150.0,0.00016973,2]
[399257285,1766211048946,-500.0,0.00016983,2]
[399257286,1766211048955,-164.76564826,0.00016986,2]
[399257287,1766211048964,-1647.70919262,0.0001699,2]
[399257288,1766211048974,-1647.70919262,0.0001699,2]
[399257289,1766211048983,-151.0,0.00016997,2]
[399257290,1766211048992,-1500.0,0.00016998,2]
[399257291,1766211049000,-1500.0,0.00016998,2]
[399257292,1766211049010,-1527.47643038,0.00016998,2]
[399257293,1766211049019,-500.0,0.00016999,2]
[399257294,1766211049032,-500.0,0.00016999,2]
[399257295,1766211049041,-500.0,0.00016999,2]
[399257296,1766211049050,-500.0,0.00016999,2]
[399257297,1766211049059,-500.0,0.00016999,2]
[399257298,1766211049068,-500.0,0.00016999,2]
[399257299,1766211049077,-500.0,0.00016999,2]
[399257300,1766211049086,-500.0,0.00016999,2]
[399257301,1766211049096,-500.0,0.00016999,2]
[399257302,1766211049105,-559.28,0.00016999,2]
[399257303,1766211049114,-308.45911544,0.00016999,2]
[399257304,1766211049123,-500.0,0.00016999,2]
[399257305,1766211049132,-500.0,0.00016999,2]
[399257306,1766211049140,-500.0,0.00016999,2]
[399257307,1766211049150,-500.0,0.00016999,2]
[399257308,1766211049159,-500.0,0.00016999,2]
[399257309,1766211049168,-592.36853989,0.00016999,2]
[399257310,1766211049177,-3601887.50924269,0.00017,2]
[399257311,1766211049388,-2816.86303894,0.00017,2]
[399257312,1766211049405,-325.929999,0.00017,2]
[399257313,1766211049965,-497.80768365,0.00017,2]
[399257314,1766211050212,-913.72062948,0.000169,2]
[399257315,1766211050223,-5311163.88343309,0.00017,2]
[399257316,1766211050232,-416852.28611018,0.00017,2]
[399257317,1766211050242,-188.65,0.00017,7]
[399257318,1766211050253,-3500.0,0.00017,2]
[399257319,1766211050262,-276.0,0.00017,2]
[399257320,1766211050273,-2000.0,0.00017,2]
[399257321,1766211050282,-3532.30254333,0.00017,2]
[399257322,1766211050293,-250.0,0.00017,2]
[399257323,1766211050304,-1258.91027464,0.00017,2]
[399257324,1766211050314,-200.0,0.00017,2]
[399257325,1766211050324,-200.0,0.00017,2]
[399257326,1766211050335,-151.0,0.00017,2]
[399257327,1766211050355,-151.0,0.00017,2]
[399257328,1766211050366,-151.0,0.00017,2]
[399257329,1766211050376,-151.0,0.00017,2]
[399257330,1766211050386,-200.0,0.00017,2]
[399257331,1766211050396,-158.91867,0.00017,2]
[399257332,1766211050406,-151.0,0.00017,2]